Cogmind - Beta 15 @@@ ROGUE MODE // 2025.06.03 @ 18:56:07 Player: 3.14 Result: Self-destructed Performance ------------- Evolutions (4) 2000 Regions Visited (9) 1800 Robots Destroyed (41) 205 Value Destroyed (1441) 1441 Prototype IDs (11) 220 Alien Tech Used (0) 0 Bonus (1293) 1293 TOTAL SCORE: 6959 Bonus ------- Follower Combat Kills 193 Registered with UFD 300 Met Optimus in HQ 500 Met Data Miner 300 Cogmind --------- Core Integrity 723/850 Matter 130/300 Energy 290/290 System Corruption 11% Temperature Warm (158) Movement Walking (190) Ox1 Location -5/Proximity Caves Parts ------- > --- POWER (2) -------- Improved Deuterium Engine > --- PROPULSION (4) --- Carbon-fiber Leg Carbon-fiber Leg Flexi-carbon Leg > --- UTILITY (5) ------ Scrap Suit High-capacity Storage Unit Advanced Targeting Computer Armor Integrity Analyzer > --- WEAPON (4) ------- Overtuned Barrage Gun > --- INVENTORY (20) --- Carbon-fiber Leg Carbon-fiber Leg Scrap Suit Makeshift Microdissipator Network Makeshift Microdissipator Network High-capacity Matter Pod (200) Hardened Heavy Armor Plating Improved Light Armor Plating Medium Insulated Plating EM Shield Hardlight Generator Improved Shield Generator Grenade Launcher Improved Grenade Launcher CPS Tube (2) Ripper DRS Beacon (Ready) Peak State ------------ > --- POWER ------------ Light Angular Momentum Engine Light Angular Momentum Engine > --- PROPULSION ------- Carbon-fiber Leg Carbon-fiber Leg Carbon-fiber Leg Flexi-carbon Leg > --- UTILITY ---------- Scrap Suit Advanced Heat Sink High-capacity Storage Unit Advanced Targeting Computer > --- WEAPON ----------- High-powered Shock Rifle High-powered Shock Rifle Heavy Assault Rifle Overtuned Barrage Gun > --- INVENTORY -------- Carbon-fiber Leg Carbon-fiber Leg Improved Heat Sink Makeshift Microdissipator Network IFF Parser Armor Integrity Analyzer Hardened Heavy Armor Plating Improved Light Armor Plating Improved Light Armor Plating Medium Insulated Plating EM Shield Hardlight Generator Force Field Grenade Launcher Improved Grenade Launcher CPS Tube CPS Tube Spear DRS Beacon [Rating: 63] Favorites ----------- Power Improved Ion Engine Engine Improved Ion Engine Propulsion Light Treads Treads Light Treads Leg Carbon-fiber Leg Wheel Wheel Utility High-capacity Storage Unit Device Scrap Suit Storage High-capacity Storage Unit Processor Advanced Targeting Computer Hackware Authchip [Propulsion] Protection Light Armor Plating Weapon Overtuned Barrage Gun Energy Gun High-powered Shock Rifle Energy Cannon Subdweller Beam Cannon Ballistic Gun Overtuned Barrage Gun Ballistic Cannon Gauss Cannon Launcher Improved Grenade Launcher Piercing Weapon Spear Build | -11 -10 -10 -8 -8 -6 -6 -6 -6 -5 ------- Run | Yrd Mat Sub Rec Scr Fac Low Low Dat Pro Slots Evolved 8 | . . . . . 8 . . . . Power 1 | . . . . . 1 . . . . Propulsion 2 | . . . . . 2 . . . . Utility 3 | . . . . . 3 . . . . Weapon 2 | . . . . . 2 . . . . Parts Attached 61 | 2 4 6 5 9 27 1 5 . 2 Power 8 | . 1 . 1 . 3 . 3 . . Engine 8 | . 1 . 1 . 3 . 3 . . Core . | . . . . . . . . . . Reactor . | . . . . . . . . . . Propulsion 14 | 2 . 2 2 . 8 . . . . Treads 6 | 2 . . 2 . 2 . . . . Leg 7 | . . 1 . . 6 . . . . Wheel 1 | . . 1 . . . . . . . Hover . | . . . . . . . . . . Flight . | . . . . . . . . . . Utility 19 | . 1 . 1 4 8 1 2 . 2 Device 10 | . . . . . 6 1 2 . 1 Storage 1 | . . . . 1 . . . . . Processor 3 | . 1 . . . 1 . . . 1 Hackware 1 | . . . . 1 . . . . . Protection 4 | . . . 1 2 1 . . . . Artifact . | . . . . . . . . . . Weapon 20 | . 2 4 1 5 8 . . . . Energy Gun 4 | . . . . 1 3 . . . . Energy Cannon 2 | . . 1 . 1 . . . . . Ballistic Gun 8 | . 2 . 1 2 3 . . . . Ballistic Cannon 4 | . . 3 . 1 . . . . . Launcher 1 | . . . . . 1 . . . . Special Weapon . | . . . . . . . . . . Impact Weapon . | . . . . . . . . . . Slashing Weapon . | . . . . . . . . . . Piercing Weapon 1 | . . . . . 1 . . . . Special Melee Weapon . | . . . . . . . . . . Unidentified Prototypes . | . . . . . . . . . . Corrupted Parts 2 | . . . . 1 1 . . . . System Corruption 14 | . . . . 4 10 . . . . Parts Lost 11 | . . 2 . . 3 . 1 . 5 Power 1 | . . . . . . . . . 1 Propulsion 4 | . . 1 . . 2 . . . 1 Utility 1 | . . . . . 1 . . . . Weapon 5 | . . 1 . . . . 1 . 3 Highest Loss Streak 4 | . . 1 . . 2 . 1 . 4 To Critical Strikes . | . . . . . . . . . . Average Backups 13 | 6 7 7 8 15 15 17 17 17 16 Power . | 1 1 1 1 1 . . . . . Propulsion 1 | 4 2 1 . 1 . 2 2 2 2 Utility 5 | . . . 1 6 8 10 11 11 10 Weapon 4 | 1 4 4 4 4 4 3 3 3 3 Tool/Special . | . . . . . . . . . . Unused Backups 33 | . 1 3 2 6 7 1 3 . 10 Power 3 | . . . . 2 1 . . . . Propulsion 9 | . . 1 1 . 2 . 3 . 2 Utility 12 | . . 1 . 3 3 . . . 5 Weapon 7 | . 1 1 1 1 1 . . . 2 Tool/Special 2 | . . . . . . 1 . . 1 Average Slot Usage (%) 95 | . 90 99 100 98 87 93 92 70 89 Engine 13 | . 14 14 14 13 10 13 12 13 10 Treads 20 | . 28 22 27 28 14 . . . . Leg 6 | . . 1 . . 10 26 26 26 25 Device 3 | . . . . . 7 13 13 13 12 Storage 11 | . 14 14 14 13 6 6 6 6 6 Processor 2 | . 5 14 . . 5 6 6 6 6 Protection 8 | . . . 13 13 2 . . . . Energy Gun 1 | . 2 . . . 6 . . . . Energy Cannon 6 | . . 9 13 9 . . . . . Ballistic Gun 16 | . 25 3 13 13 14 25 25 4 24 Ballistic Cannon 2 | . . 15 . 3 2 . . . . Peak Build Rating 63 | 6 7 9 11 22 63 60 59 58 60 Average Rating 27 | 6 6 8 10 17 47 59 58 46 57 On Entrance 29 | 6 6 7 8 11 22 58 59 58 58 Naked Turns . | . . . . . . . . . . Heaviest Build 95 | 11 13 21 27 62 95 75 81 81 77 Greatest Support 80 | 40 40 40 40 40 80 65 65 65 65 Greatest Overweight (x) 5 | . . 2 2 1 5 1 1 1 1 Average Overweight (x) . | . . . . . . 1 . 1 1 Largest Inventory Capacity 20 | 8 8 8 8 20 20 20 20 20 20 Average Capacity 15 | 8 8 8 8 17 20 20 20 20 20 Most Carried 20 | 6 8 8 8 20 20 20 20 20 20 Average Carried 14 | 6 7 7 7 16 17 19 19 20 19 Final Capacity 20 | 8 8 8 8 20 20 20 20 20 20 Final Carried 20 | 6 8 8 8 20 20 20 20 20 19 Class Distribution -------------------- 49% | Scavenger-Mutant 19% | Scavenger-Scrapper 18% | Mutant 12% | Scavenger-Gunner Dominant Class ---------------- Mutant | -10/Materials Mutant | -10/Subcaves Scavenger-Mutant | -8/Recycling Scavenger-Mutant | -8/Scraptown Scavenger-Gunner | -6/Factory Scavenger-Scrapper | -6/Lower Caves Scavenger-Scrapper | -6/Lower Caves Scavenger-Mutant | -6/Data Miner Scavenger-Scrapper | -5/Proximity Caves Resources | -11 -10 -10 -8 -8 -6 -6 -6 -6 -5 ----------- Run | Yrd Mat Sub Rec Scr Fac Low Low Dat Pro Matter Collected 2040 | 153 186 203 81 50 674 183 447 . 63 Remotely . | . . . . . . . . . . Salvage Created 1836 | . 210 135 215 . 803 . 423 . 50 Parts 100 | . 15 9 12 . 43 . 18 . 3 Haulers Intercepted 1 | . 1 . . . . . . . . Recyclers Shooed 1 | . . . 1 . . . . . . Parts Field Recycled . | . . . . . . . . . . Retrieved Matter . | . . . . . . . . . . Parts Self-Destructed 27 | . . 17 . . . 1 6 . 3 Prevented 4 | . . . . . . 4 . . . Kills | -11 -10 -10 -8 -8 -6 -6 -6 -6 -5 ------- Run | Yrd Mat Sub Rec Scr Fac Low Low Dat Pro Combat Hostiles Destroyed 35 | . 8 5 3 . 11 . 7 . 1 Guns 28 | . 8 1 2 . 9 . 7 . 1 Cannons 6 | . . 4 1 . 1 . . . . Classes Destroyed 12 | . 3 2 2 . 4 . 1 . . Worker 1 | . . . . . 1 . . . . Builder 1 | . . . . . 1 . . . . Hauler 1 | . 1 . . . . . . . . Recycler 2 | . . . 1 . 1 . . . . Turret 1 | . . 1 . . . . . . . Swarmer 10 | . 6 3 . . . . 1 . . Grunt 8 | . 2 . . . 5 . 1 . . Sentry 7 | . . . 3 . 3 . 1 . . Programmer 3 | . . . . . 2 . . . 1 Heavy 1 | . . . . . 1 . . . . Subdweller 2 | . . 2 . . . . . . . Decomposer 1 | . . . . . . . 1 . . Thug 1 | . . . . . . . 1 . . Butcher 3 | . . . . . . . 3 . . Best Kill Streak 5 | . 5 3 3 . 2 . 4 . 1 Combat Bots Only 5 | . 5 3 2 . 2 . 4 . 1 Max Kills in Single Turn 1 | . 1 1 1 . 1 . 1 . 1 Gunslinging . | . . . . . . . . . . Exploded . | . . . . . . . . . . Melee . | . . . . . . . . . . Uniques/NPCs Destroyed . | . . . . . . . . . . Combat | -11 -10 -10 -8 -8 -6 -6 -6 -6 -5 -------- Run | Yrd Mat Sub Rec Scr Fac Low Low Dat Pro Hostile Shots Fired 330 | . 26 107 4 . 105 . 37 . 51 Missed 120 | . 5 42 3 . 43 . 13 . 14 Hits 210 | . 21 65 1 . 62 . 24 . 37 Melee 5 | . . . . . . . 5 . . Projectile 205 | . 21 65 1 . 62 . 19 . 37 Critical Strikes 8 | . 1 . 1 . 1 . 4 . 1 Part Disruptions 2 | . . . . . . . . . 2 Damage Taken 2682 | . 176 506 14 . 912 . 295 . 779 Core 261 | . 24 110 . . 34 . 6 . 87 Absorbed by Shields 56 | . . . . . . . 56 . . Ignored by Resistances 29 | . . . . . . . . . 29 Regen/Repaired (Parts) 303 | . . . . . 303 . . . . Core Remaining (%) 73 | 100 . . . 46 . . . . . Volleys Fired 129 | . 23 29 7 . 37 . 17 . 16 Largest 4 | . 2 2 2 . 4 . 4 . 4 Hottest 180 | . 40 110 110 . 180 . 113 . 118 Shots Fired 320 | . 46 54 14 . 99 1 60 . 46 Gun 261 | . 46 14 7 . 87 1 60 . 46 Cannon 57 | . . 40 7 . 10 . . . . Launcher 2 | . . . . . 2 . . . . Special . | . . . . . . . . . . Kinetic 257 | . 46 47 7 . 50 1 60 . 46 Thermal 14 | . . 7 7 . . . . . . Explosive 2 | . . . . . 2 . . . . Electromagnetic 47 | . . . . . 47 . . . . Robot Hit Streak 11 | . 8 9 10 . 11 . 4 . 4 Robot Miss Streak 8 | . 2 3 1 . 2 . 4 . 8 Penetration Max . | . . . . . . . . . . Secondary Targets 4 | . 1 . . . 2 . 1 . . Max Gunslinging Chain 1 | . 1 . . . 1 . 1 . . Shots Hit Robots 211 | . 33 36 12 . 70 . 32 . 28 Core Hits 75 | . 14 9 4 . 28 . 14 . 6 Critical Kills 2 | . . . . . . . 2 . . Critical Parts Destroyed 2 | . 1 . . . . . . . 1 Critical Strikes 4 | . 1 . . . . . 2 . 1 Destroy 4 | . 1 . . . . . 2 . 1 Melee Attacks 18 | . . . . . 14 4 . . . Impact . | . . . . . . . . . . Slashing . | . . . . . . . . . . Piercing 18 | . . . . . 14 4 . . . Sneak Attacks 3 | . . . . . 3 . . . . Combat Hostiles . | . . . . . . . . . . Follow-up Attacks . | . . . . . . . . . . Damage Inflicted 4062 | . 340 505 337 . 1644 . 682 . 554 Guns 2972 | . 331 84 126 . 1214 . 663 . 554 Cannons 772 | . . 421 173 . 178 . . . . Explosions 42 | . . . . . 42 . . . . Melee 189 | . . . . . 189 . . . . Ramming 87 | . 9 . 38 . 21 . 19 . . Kinetic 2791 | . 331 450 126 . 667 . 663 . 554 Thermal 228 | . . 55 173 . . . . . . Explosive 42 | . . . . . 42 . . . . Electromagnetic 725 | . . . . . 725 . . . . Impact . | . . . . . . . . . . Slashing . | . . . . . . . . . . Piercing 189 | . . . . . 189 . . . . Highest Corruption 11 | . . . . 4 10 10 10 10 11 Average Corruption 10 | . . . . 4 10 10 10 10 10 Corruption Purged . | . . . . . . . . . . Corruption Blocked . | . . . . . . . . . . Effects 92 | . . . . . 33 26 22 5 6 Message Errors 23 | . . . . . 9 8 5 1 . Matter Fused 26 | . . . . . 8 7 9 1 1 Heat Flow Errors 8 | . . . . . 1 4 2 . 1 Energy Discharges 9 | . . . . . 5 1 3 . . Parts Rejected 2 | . . . . . 2 . . . . Parts Fused 1 | . . . . . . . . . 1 Data Loss (minor) 7 | . . . . . 1 2 1 1 2 Data Loss (major) 2 | . . . . . . 1 . 1 . Misfires 5 | . . . . . 3 1 1 . . Alerts 3 | . . . . . . 2 . 1 . Misdirections 1 | . . . . . . . . . 1 Weapon Failures 5 | . . . . . 4 . 1 . . Overload Shots . | . . . . . . . . . . Overflow Damage 62 | . . 9 . . 53 . . . . Projectiles 10 | . . 9 . . 1 . . . . Explosions 12 | . . . . . 12 . . . . Melee 40 | . . . . . 40 . . . . Knockbacks 1 | . . 1 . . . . . . . Impact . | . . . . . . . . . . Kinetic 1 | . . 1 . . . . . . . Secondary . | . . . . . . . . . . Self-Inflicted Damage . | . . . . . . . . . . Shots . | . . . . . . . . . . Rammed 13 | . 4 . 8 . 1 . . . . Targets Rammed 16 | . 4 . 8 . 3 . 1 . . Kicked 3 | . . . . . 2 . 1 . . Crushed . | . . . . . . . . . . Highest Temperature 360 | . 6 18 219 . 279 179 200 . 360 Average Temperature 88 | . 6 10 81 . 75 80 106 . 126 Received Heat Transfer 629 | . 12 279 27 . 189 . 26 . 96 Siege Activations . | . . . . . . . . . . Martial Activations . | . . . . . . . . . . Shielding Activations . | . . . . . . . . . . Robots Disrupted . | . . . . . . . . . . Combat Hostiles . | . . . . . . . . . . Robots Corrupted 1 | . . . . . 1 . . . . Combat Hostiles 1 | . . . . . 1 . . . . Parts Fried 10 | . . . . . 10 . . . . Impact Corruptions . | . . . . . . . . . . Robots Melted . | . . . . . . . . . . Combat Hostiles . | . . . . . . . . . . Parts Melted . | . . . . . . . . . . Heat Transferred 296 | . . 74 222 . . . . . . Parts Sabotaged . | . . . . . . . . . . Parts Stolen . | . . . . . . . . . . Parts Stripped . | . . . . . . . . . . Power Chain Reactions . | . . . . . . . . . . Alert | -11 -10 -10 -8 -8 -6 -6 -6 -6 -5 ------- Run | Yrd Mat Sub Rec Scr Fac Low Low Dat Pro Maximum Alert Level 1 | . . . . . 1 . . . . Low Security (%) 99 | 100 100 . 100 . 99 . . . . Level 1 . | . . . . . . . . . . Level 2 . | . . . . . . . . . . Level 3 . | . . . . . . . . . . Level 4 . | . . . . . . . . . . Level 5 . | . . . . . . . . . . High Security . | . . . . . . . . . . Max Security . | . . . . . . . . . . Peak Influence 196 | . 143 . 86 . 196 . . . . Initial 21 | . . . 21 . . . . . . Average 24 | . 58 . 5 . 44 . . . . Influence Increases 1182 | . 213 165 147 . 567 . 60 . 30 Destroy 0b10 Robot/C 700 | . 160 80 60 . 320 . 60 . 20 Destroy 0b10 Robot/NC 25 | . 5 . 5 . 15 . . . . Destroy Leader 162 | . 32 10 . . 110 . . . 10 Allied During Kill 47 | . . . . . 47 . . . . Successful Hack 19 | . . . 6 . 13 . . . . Select Force Hacks 60 | . . . 60 . . . . . . Disable Machine 30 | . . . 15 . 15 . . . . Destroy Structure 19 | . 1 . 1 . 17 . . . . Lose Combat Pursuer 120 | . 15 75 . . 30 . . . . Influence Decreases 1182 | . 132 201 192 . 549 18 60 . 30 Entered New Map 72 | . . 40 24 . . 8 . . . Time Decay 865 | . 132 141 168 . 334 10 50 . 30 Lost Part 60 | . . 20 . . 30 . 10 . . Lost Ally 40 | . . . . . 40 . . . . Purge Threat 145 | . . . . . 145 . . . . Squads Dispatched 9 | . 1 . . . 8 . . . . Investigation 3 | . . . . . 3 . . . . Extermination 2 | . . . . . 2 . . . . Reinforcement 4 | . 1 . . . 3 . . . . Assault . | . . . . . . . . . . Garrison . | . . . . . . . . . . Intercept . | . . . . . . . . . . Searches Triggered . | . . . . . . . . . . Construction Impeded 1 | . . . . . 1 . . . . Haulers Reinforced . | . . . . . . . . . . Active Scanning Responses . | . . . . . . . . . . Cargo Convoy Interrupts . | . . . . . . . . . . Stealth | -11 -10 -10 -8 -8 -6 -6 -6 -6 -5 --------- Run | Yrd Mat Sub Rec Scr Fac Low Low Dat Pro Distress Signals 3 | . 2 . . . 1 . . . . Communications Jammed . | . . . . . . . . . . Distress Signals . | . . . . . . . . . . Times Spotted 55 | . 9 11 1 . 25 . 7 . 2 Peak Tracking Total 5 | . 5 4 . . 3 . 4 . 1 Tactical Retreats 4 | . 1 2 . . 1 . . . . Traps | -11 -10 -10 -8 -8 -6 -6 -6 -6 -5 ------- Run | Yrd Mat Sub Rec Scr Fac Low Low Dat Pro Traps Triggered . | . . . . . . . . . . Indirectly . | . . . . . . . . . . Trap Hack Attempts . | . . . . . . . . . . Triggered . | . . . . . . . . . . Disarmed . | . . . . . . . . . . Reprogrammed . | . . . . . . . . . . Reused . | . . . . . . . . . . Traps Extracted . | . . . . . . . . . . Installed . | . . . . . . . . . . Triggered . | . . . . . . . . . . Machines | -11 -10 -10 -8 -8 -6 -6 -6 -6 -5 ---------- Run | Yrd Mat Sub Rec Scr Fac Low Low Dat Pro Machines Disabled 2 | . . . 1 . 1 . . . . Max in Single Turn 1 | . . . 1 . 1 . . . . Garrison Access 1 | . . . . . 1 . . . . Machines Repaired . | . . . . . . . . . . Machines Dismantled . | . . . . . . . . . . Machines Sabotaged . | . . . . . . . . . . Overloaded Fab Kills . | . . . . . . . . . . Hacking | -11 -10 -10 -8 -8 -6 -6 -6 -6 -5 --------- Run | Yrd Mat Sub Rec Scr Fac Low Low Dat Pro Machines Accessed 23 | . 1 . 6 3 9 . . 4 . Terminals 6 | . 1 . 4 . 1 . . . . Fabricators . | . . . . . . . . . . Repair Stations 2 | . . . . . 2 . . . . Recycling Units 5 | . . . 2 . 3 . . . . Scanalyzers 2 | . . . . . 2 . . . . Garrison Access 1 | . . . . . 1 . . . . Total Hacks 110 | . 3 . 19 30 25 . . 33 . Successful 81 | . . . 4 30 14 . . 33 . Failed 28 | . 3 . 14 . 11 . . . . Catastrophic 3 | . 1 . 2 . . . . . . Database Lockouts 1 | . . . 1 . . . . . . Manual 22 | . 3 . 13 . 6 . . . . Terminals 21 | . 3 . 16 . 2 . . . . Fabricators . | . . . . . . . . . . Repair Stations 7 | . . . . . 7 . . . . Recycling Units 9 | . . . 3 . 6 . . . . Scanalyzers 6 | . . . . . 6 . . . . Garrison Access 4 | . . . . . 4 . . . . Terminal Hacks 66 | . . . 2 30 1 . . 33 . Record 33 | . . . . 22 . . . 11 . Part Schematic 13 | . . . 1 . . . . 12 . Robot Schematic 7 | . . . . . . . . 7 . Robot Analysis 8 | . . . . 8 . . . . . Prototype ID Bank 3 | . . . . . . . . 3 . Terminal Index 1 | . . . 1 . . . . . . Unreport Threat 1 | . . . . . 1 . . . . Fabricator Hacks . | . . . . . . . . . . Repair Station Hacks 2 | . . . . . 2 . . . . Scan Component 1 | . . . . . 1 . . . . Repair 1 | . . . . . 1 . . . . Recycling Unit Hacks 1 | . . . . . 1 . . . . Retrieve Components 1 | . . . . . 1 . . . . Scanalyzer 5 | . . . . . 5 . . . . Insert Component 3 | . . . . . 3 . . . . Analyze 2 | . . . . . 2 . . . . Garrison Access Hacks 1 | . . . . . 1 . . . . Seal Access 1 | . . . . . 1 . . . . Unauthorized Hacks 6 | . . . 2 . 4 . . . . Terminals . | . . . . . . . . . . Fabricators . | . . . . . . . . . . Repair Stations . | . . . . . . . . . . Recycling Units 6 | . . . 2 . 4 . . . . Mask 1 | . . . . . 1 . . . . Tunnel 2 | . . . 2 . . . . . . Fedlink 2 | . . . . . 2 . . . . Scrapoids 1 | . . . . . 1 . . . . Scanalyzers . | . . . . . . . . . . Garrison Access . | . . . . . . . . . . Data Cores Recovered . | . . . . . . . . . . Used . | . . . . . . . . . . Hacking Detections 12 | . 1 . 5 . 6 . . . . Full Trace Events 4 | . . . 4 . . . . . . Feedback Events . | . . . . . . . . . . Feedback Blocked . | . . . . . . . . . . Robot Schematics Acquired 7 | . . . . . . . . 7 . Robots Built . | . . . . . . . . . . Authchips . | . . . . . . . . . . Time . | . . . . . . . . . . Total Robot Build Rating . | . . . . . . . . . . Part Schematics Acquired 15 | . . . 1 . 2 . . 12 . Parts Built . | . . . . . . . . . . Authchips . | . . . . . . . . . . Time . | . . . . . . . . . . Total Part Build Rating . | . . . . . . . . . . Parts Repaired 1 | . . . . . 1 . . . . Time 44 | . . . . . 44 . . . . Parts Recycled . | . . . . . . . . . . Recycled Matter . | . . . . . . . . . . Retrieved Matter . | . . . . . . . . . . Retrieved Components 10 | . . . . . 10 . . . . Parts Scanalyzed 2 | . . . . . 2 . . . . Part Schematics Acquired 2 | . . . . . 2 . . . . Parts Damaged . | . . . . . . . . . . Bothacking | -11 -10 -10 -8 -8 -6 -6 -6 -6 -5 ------------ Run | Yrd Mat Sub Rec Scr Fac Low Low Dat Pro Used RIF Installer . | . . . . . . . . . . Robots Hacked . | . . . . . . . . . . Non-combat . | . . . . . . . . . . Combat . | . . . . . . . . . . Robot Hacks Applied . | . . . . . . . . . . Relay Couplers Released . | . . . . . . . . . . Fabnet Peak Effective % . | . . . . . . . . . . Robots Rewired . | . . . . . . . . . . Allies Hacked . | . . . . . . . . . . Hacks Repelled . | . . . . . . . . . . Allies | -11 -10 -10 -8 -8 -6 -6 -6 -6 -5 -------- Run | Yrd Mat Sub Rec Scr Fac Low Low Dat Pro Total Allies 5 | . . . . . 5 . . . . Largest Group 5 | . . . . . 5 . . . . Highest-Rated Group 143 | . . . . . 143 . . . . Highest-Rated Ally 31 | . . . . . 31 . . . . Total Orders . | . . . . . . . . . . Ally Attacks 65 | . . . . . 65 . . . . Total Damage 934 | . . . . . 934 . . . . Kills 5 | . . . . . 5 . . . . Allies Corrupted . | . . . . . . . . . . Allies Melted 1 | . . 1 . . . . . . . Intel | -11 -10 -10 -8 -8 -6 -6 -6 -6 -5 ------- Run | Yrd Mat Sub Rec Scr Fac Low Low Dat Pro Active Infowar (turns) 1437 | . . . . . . 864 377 . 196 IFF 1437 | . . . . . . 864 377 . 196 Robot Analysis Total 8 | . . . . 8 . . . . . Derelict Logs Recovered 4 | . . . . 2 . 1 1 . . Drone Launches . | . . . . . . . . . . Drone Recoveries . | . . . . . . . . . . Exploration | -11 -10 -10 -8 -8 -6 -6 -6 -6 -5 ------------- Run | Yrd Mat Sub Rec Scr Fac Low Low Dat Pro Turns Passed 10042 | 3 473 316 2430 3368 1553 868 628 170 233 Spaces Moved 4947 | 1 242 137 1504 1569 598 449 305 89 53 Core 89 | . . . . 89 . . . . . Treads 3587 | 1 242 83 1461 1480 320 . . . . Legs 1174 | . . . . . 278 449 305 89 53 Wheels 97 | . . 54 43 . . . . . . Hover . | . . . . . . . . . . Flight . | . . . . . . . . . . Fastest Speed 50 | 160 160 95 95 50 160 190 120 190 190 Average Speed 186 | 160 160 142 158 211 205 190 189 190 190 Slowest Speed 470 | 160 160 240 160 240 470 190 190 190 190 Overloaded Moves . | . . . . . . . . . . Propulsion Burnouts . | . . . . . . . . . . Robots Hopped . | . . . . . . . . . . Potential Cave-ins . | . . . . . . . . . . Cave-ins Triggered . | . . . . . . . . . . Exploration Rate (%) 44 | 2 49 10 98 87 14 55 54 70 10 Regions Visited 9 Branch Regions 7 Pre-discovered Areas 10 | . . . 2 6 1 . . 1 . Known Exits Taken 3 | . . . . . 1 1 1 . . Unknown Exits Taken 6 | 1 1 1 1 1 . . . 1 . Scrap Searched 10 | . . . . 7 . 1 2 . . Spaces Dug 17 | . . . . . 15 2 . . . Terrain Destroyed 26 | . . 3 1 . 16 2 1 . 3 Melee 6 | . . . . . 4 2 . . . Projectile 9 | . . 3 1 . 1 . 1 . 3 AOE 11 | . . . . . 11 . . . . Terrain Rammed . | . . . . . . . . . . Walls Destroyed . | . . . . . . . . . . Machines Disabled . | . . . . . . . . . . Actions | -11 -10 -10 -8 -8 -6 -6 -6 -6 -5 --------- Run | Yrd Mat Sub Rec Scr Fac Low Low Dat Pro Total 5561 | 2 287 208 1539 1634 829 457 345 93 167 Wait 218 | . 2 26 1 1 86 . 8 . 94 Move 4938 | . 241 136 1503 1568 597 448 304 88 53 Hop . | . . . . . . . . . . Pick Up 83 | . 6 6 5 36 25 1 4 . . Fast Attach 23 | . 2 1 2 5 12 . 1 . . Attach 18 | . . 2 . 3 13 . . . . Detach 1 | . . . . . 1 . . . . Swap 37 | 2 2 3 4 3 12 3 4 . 4 Drop 80 | . 7 5 9 18 29 1 6 5 . Fire 129 | . 23 29 7 . 37 . 17 . 16 Melee 18 | . . . . . 14 4 . . . Ram . | . . . . . . . . . . Kick 3 | . . . . . 2 . 1 . . Crush 13 | . 4 . 8 . 1 . . . . Escape Stasis . | . . . . . . . . . . Rewire . | . . . . . . . . . . Trap . | . . . . . . . . . . Miscellaneous . | . . . . . . . . . . Route ------- -11/Scrapyard -10/Materials -10/Subcaves -8/Recycling (discovered 2 exits: *Fac / *Scr) -8/Scraptown (discovered 2 exits: *Fac x2) -6/Factory (discovered 4 exits: Fac x2 / *Low x2) -6/Lower Caves -6/Lower Caves (discovered 2 exits: *Fac / *Dat) -6/Data Miner -5/Proximity Caves (discovered 1 exit: Fac) History --------- Turn | Location | Event 4 | -11/Scrapyard | Discovered new exit (range 0) 4 | -11/Scrapyard | Entered Materials 5 | -10/Materials | Met a group of wandering Federalists 303 | -10/Materials | Build established: Mutant 471 | -10/Materials | Discovered new exit (range 5) 477 | -10/Materials | Entered Subcaves 478 | -10/Subcaves | Continued accompanying wandering Federalists (5) 478 | -10/Subcaves | Approached by a straggling Scientist 525 | -10/Subcaves | Lost 5 allies 763 | -10/Subcaves | Core integrity fell below 50% 775 | -10/Subcaves | Discovered new exit (range 15) 793 | -10/Subcaves | Entered Recycling 1059 | -8/Recycling | Discovered new exit (range 16) 1152 | -8/Recycling | Build established: Scavenger-Mutant 2041 | -8/Recycling | Scanned before Scraplab entrance 2064 | -8/Recycling | Entered Scraplab 2077 | -8/Recycling | Discovered new exit (range 3) 3223 | -8/Recycling | Entered Scraptown 3451 | -8/Scraptown | Scanned Subdweller tech in exchange for log data 3455 | -8/Scraptown | Learned location of Armory (-4) 3457 | -8/Scraptown | Learned Research security intel 3479 | -8/Scraptown | Discovered new exit (range 11) 3579 | -8/Scraptown | Heard Great Nut preacher, LISTEN AND RECITE! 3773 | -8/Scraptown | Visited Bundlers 3935 | -8/Scraptown | Visited Spacefarers 4148 | -8/Scraptown | Visited Fellowship of the Rings 4179 | -8/Scraptown | Visited Shadow of the Wyrm 4657 | -8/Scraptown | Visited Symbiants 4676 | -8/Scraptown | Visited Assassins FH 4925 | -8/Scraptown | Visited UFD Registry 4925 | -8/Scraptown | Registered with UFD as "Chainsplitter" 5019 | -8/Scraptown | Visited LU-1G1's Boring Crew 5230 | -8/Scraptown | Visited Observation Area 5331 | -8/Scraptown | Visited Analyses Database 5405 | -8/Scraptown | Visited Scrapoid Pod Storage 5439 | -8/Scraptown | Visited Derelict Rescue Squad 5454 | -8/Scraptown | Found DRS Beacon 5503 | -8/Scraptown | Visited Abandonware Association 5532 | -8/Scraptown | Learned abandonware demo "TRNCOAT.EXE" 5532 | -8/Scraptown | Learned abandonware demo "REBOOT5.EXE" 5592 | -8/Scraptown | Visited Cartography Club 5639 | -8/Scraptown | Learned location of Recycling (-8) 5639 | -8/Scraptown | Learned location of Archives (-4) 5639 | -8/Scraptown | Learned 16 Factory zone layouts 5639 | -8/Scraptown | Learned 20 Factory zone layouts 5639 | -8/Scraptown | Learned 8 Access zone layouts 5639 | -8/Scraptown | Learned 8 Lower Caves zone layouts 5639 | -8/Scraptown | Learned 12 Lower Caves zone layouts 5639 | -8/Scraptown | Learned 20 Upper Caves zone layouts 5639 | -8/Scraptown | Learned 4 Hub_04(d) zone layouts 5639 | -8/Scraptown | Learned location of 2 exits from Lower Caves 5639 | -8/Scraptown | Learned location of 1 exit from Proximity Caves 5920 | -8/Scraptown | Build established: Mutant 6308 | -8/Scraptown | Found Scrap Suit 6455 | -8/Scraptown | Met Optimus 6455 | -8/Scraptown | Accepted into 0bPrime 6580 | -8/Scraptown | Discovered new exit (range 5) 6591 | -8/Scraptown | Entered Factory 6591 | -6/Factory | Evolved 8 slots: Power x1, Propulsion x2, Utility x3, Weapon x2 6592 | -6/Factory | Identified exit to Lower Caves 6593 | -6/Factory | Identified exit to Factory 6641 | -6/Factory | Spotted B-75 Beast 6884 | -6/Factory | Build established: Scavenger-Gunner 6905 | -6/Factory | Repaired Hrd. Heavy Armor Plating 6985 | -6/Factory | Loaded intel: 8 recycling unit locations 7288 | -6/Factory | System corruption reached 10% 7392 | -6/Factory | Scrapoid reinforcements arrived 7645 | -6/Factory | Learned location of Protoforge (-2) 7839 | -6/Factory | Found Scrap Suit 7851 | -6/Factory | Lost 4 allies 7867 | -6/Factory | Found Corrupted Scrap Suit 7913 | -6/Factory | Found Scrap Suit 8144 | -6/Factory | Entered Lower Caves 8145 | -6/Lower Caves | Identified exit to Lower Caves 8188 | -6/Lower Caves | Build established: Scavenger-Scrapper 8558 | -6/Lower Caves | Learned 8 Factory zone layouts 9012 | -6/Lower Caves | Entered another Lower Caves area 9012 | -6/Lower Caves | Discovered exit to Factory (range 12) 9013 | -6/Lower Caves | Identified exit to Data Miner 9137 | -6/Lower Caves | Encountered a Warlord checkpoint 9269 | -6/Lower Caves | Learned Factory garrison access intel 9389 | -6/Lower Caves | Ambushed by wild Derelicts 9501 | -6/Lower Caves | Attracted the attention of an 0b10 checkpoint 9640 | -6/Lower Caves | Entered Data Miner 9640 | -6/Data Miner | Discovered new exit (range 6) 9679 | -6/Data Miner | Met Data Miner 9723 | -6/Data Miner | Learned location of Section 7 (-2) 9723 | -6/Data Miner | Acquired the access code to Warlord's prototype stash 9757 | -6/Data Miner | Received God Mode back door access code from Data Miner 9810 | -6/Data Miner | Entered Proximity Caves 9959 | -5/Proximity Caves | Spotted B-75 Beast 10043 | -5/Proximity Caves | Self-destructed Last Messages --------------- 09823_ P-70 Sage destroyed. 09831_ Acquired 50 matter. 09834_ Imp. Target Analyzer fries itself beyond repair. 09837_ Imp. Heat Sink fries itself beyond repair. 09839_ Antigrav System fries itself beyond repair. 09852_ System corrupted: Heat flow error (+141). 09881_ System corrupted: IFF Parser fused. 09965_ Knocked back. 09965_ Lgt. Angular Momentum Engine destroyed. 09966_ Acquired 10 matter. 09980_ Acquired 3 matter. 10012_ System corrupted: Component data lost. 10021_ Discarded IFF Parser. 10024_ Ovr. Barrage Gun destroyed. 10027_ Flak Gun destroyed. 10027_ Carbon-fiber Leg destroyed. 10029_ B-75 Beast suffers critical hit (Destroy). 10029_ Destroyed Imp. Medium Treads. 10037_ System corrupted: Matter fused (-8). 10042_ Ovr. Barrage Gun destroyed. Map ----- +----------------------------------------------------+ | ????# # ????????????????????????????????????? | | ????# ????????????????????????????????????? | | ????? ? ???????????????????????????????????? | | ????? ? ???????????????????????????????????? | | ?????? ???????????????????????????????????? | | ?????? ???????????????????????????????????? | | ??????# # ?????????####??????????????????????? | | ??????# # ???##?? ???????????????????????? | | ?####?# # #? ??# ## #?????????????????????????? | | ## ### # #? ## % #?????????????????????????? | | # # ### % ??????????????????????????? | | # % # ## #???%= ??????????????????????????? | | # ## # #??? ??????????????????????????? | | ##### # #??? #?????????????????????????? | | #??# % ### #???# #?????????????????????????? | | ##?#####?# #???# #?????????????????????????? | | ###?????# #???# $##????????????????????????? | | #?????# #???# ###??????????????????????? | | ##????##BB;##?? #??????????????????????? | | #?## ##;BB; #?## #??????????????????????? | | #####?# ;## #??????????????????????? | | #?????## #??????????????????????? | | ##??????## #??????????????????????? | | #?????????## #??????????????????????? | | ???????????# #??????????????????????? | | ???????????######## @##?????????????????????? | | ??????????????????## ###???????????????????? | | ???????????????????## %% #???????????????????? | | ????????????????????## ##???????????????????? | | ?????????????????????########????????????????????? | | ?????????????????????????????????????????????????? | | ?????????????????????????????????????????????????? | | ?????????????????????????????????????????????????? | | ?????????????????????????????????????????????????? | | ?????????????????????????????????????????????????? | | ?????????????????????????????????????????????????? | | ?????????????????????????????????????????????????? | | ?????????????????????????????????????????????????? | | ?????????????????????????????????????????????????? | | ?????????????????????????????????????????????????? | | ?????????????????????????????????????????????????? | | ?????????????????????????????????????????????????? | | ?????????????????????????????????????????????????? | | ?????????????????????????????????????????????????? | | ?????????????????????????????????????????????????? | | | | | | | | | | | +----------------------------------------------------+ Best States ------------- Heat Dissipation 51 Energy Generation 31 Energy Capacity 440 Matter Stores 300 Matter Capacity 300 Sight Range 16 Terrain Scan Density 10 Armor Coverage 600 Resistance: EM 25 Evasion (%) 50 Targeting Accuracy 8 Armor Integrity Analysis 30 Recoil Reduction 4 Authchip Count 1 Item Schematics ----------------- Arm. Treads | -8/Recycling | Hacked Hrd. Heavy Armor Plating | -6/Factory | Scanalyzed CPS Tube | -6/Factory | Scanalyzed Combat Drone Bay | -6/Data Miner | Free Lgt. Regenerative Plating | -6/Data Miner | Free Enh. Armored Leg | -6/Data Miner | Free Imp. Thermal Defense Suite | -6/Data Miner | Free Hvy. Gatling Laser | -6/Data Miner | Free Imp. Heavy Treads | -6/Data Miner | Free Quantum Capacitor | -6/Data Miner | Free Hvy. Disruptor Cannon | -6/Data Miner | Free Hyp. Coil Gun | -6/Data Miner | Free Imp. Gyrokinetic Inverter | -6/Data Miner | Free Adv. Focal Shield | -6/Data Miner | Free Enh. Force Lance | -6/Data Miner | Free Robot Schematics ------------------ A-15 Conveyor | -6/Data Miner | Free H-66 Slayer | -6/Data Miner | Free S-27 Virus | -6/Data Miner | Free L-61 Swordsman | -6/Data Miner | Free W-44 Eye | -6/Data Miner | Free G-50 Soldier | -6/Data Miner | Free B-60 Warrior | -6/Data Miner | Free Fabricated ------------ Nothing Repaired ---------- Hrd. Heavy Armor Plating | 55% | -6/Factory Alien Tech Used ----------------- None Achievements -------------- None Challenges ------------ None Game ------ Seed DirtyMatterBrace Manual? 0 Play Time 00:38:07 Cumulative 926.9 hours Start 2025.06.03 @ 18:17:31 End 2025.06.03 @ 18:56:07 Sessions 1 Manual Loads 0 Difficulty Rogue Special Mode None Game No. 1519 Rogue 1519 Adventurer 0 Explorer 0 Win Type - Total 91 Types 54/1/16/14/4/0/0/1/0/1 Lore% 90 Gallery% 83 Achievement% 85 Wizard Run 0 Options --------- Layout 0 ASCII 1 Keyboard 0 Movement Numpad Keybinds 1 Fullscreen 2 Font 18/SmallcapsGlow Map View 76x50 Zoom Use 0% Tactical HUD 1 Map Filters NONE Filters NONE Steam 1 RUN: b6499251-7afb-4f38-98e8-56bb559f8f5d